[Event "Late-Titled-Tuesday-Blitz-October-03-2023"]
[Site "Chess.com"]
[Date "2023.10.03"]
[Round "3"]
[White "Alexandr_Predke"]
[Black "AyMitecK"]
[Result "1-0"]
[WhiteElo "2889"]
[BlackElo "2545"]
[TimeControl "180+1"]
[EndTime "14:25:40 PDT"]
[Termination "Alexandr_Predke won by checkmate"]

1. d4 {[%clk 0:03:00.9]} 1... Nf6 {[%clk 0:02:59.7]} 2. Nf3 {[%clk 0:02:59]}
2... e6 {[%clk 0:02:59.9]} 3. c3 {[%clk 0:02:55.3]} 3... c5 {[%clk 0:02:59.4]}
4. Bg5 {[%clk 0:02:53.4]} 4... cxd4 {[%clk 0:02:56.5]} 5. Qxd4 {[%clk
0:02:50.7]} 5... Be7 {[%clk 0:02:52.7]} 6. g3 {[%clk 0:02:46]} 6... Nc6 {[%clk
0:02:52.8]} 7. Qd1 {[%clk 0:02:45.6]} 7... h6 {[%clk 0:02:51.6]} 8. Bxf6 {[%clk
0:02:43.2]} 8... Bxf6 {[%clk 0:02:51.5]} 9. Bg2 {[%clk 0:02:44.1]} 9... b6
{[%clk 0:02:50.5]} 10. O-O {[%clk 0:02:41.6]} 10... Bb7 {[%clk 0:02:50.8]} 11.
Nbd2 {[%clk 0:02:42.5]} 11... O-O {[%clk 0:02:50.6]} 12. e4 {[%clk 0:02:31.8]}
12... d5 {[%clk 0:02:43.4]} 13. Re1 {[%clk 0:02:30.4]} 13... dxe4 {[%clk
0:02:39.5]} 14. Nxe4 {[%clk 0:02:29]} 14... Be7 {[%clk 0:02:40.4]} 15. Qe2
{[%clk 0:02:02.7]} 15... Qc8 {[%clk 0:02:37.2]} 16. Rad1 {[%clk 0:01:59.3]}
16... Na5 {[%clk 0:02:33.7]} 17. Ne5 {[%clk 0:01:53.8]} 17... Qc7 {[%clk
0:02:26.6]} 18. Qh5 {[%clk 0:01:39.6]} 18... Rad8 {[%clk 0:02:15.1]} 19. Rxd8
{[%clk 0:01:37.3]} 19... Bxd8 {[%clk 0:02:12.6]} 20. Rd1 {[%clk 0:01:29]} 20...
f5 {[%clk 0:02:03.5]} 21. Nd6 {[%clk 0:01:11.7]} 21... Bxg2 {[%clk 0:02:00.5]}
22. Kxg2 {[%clk 0:01:12.6]} 22... Nb7 {[%clk 0:01:49.4]} 23. Ndf7 {[%clk
0:00:42.2]} 23... Nc5 {[%clk 0:01:32.4]} 24. b4 {[%clk 0:00:37.6]} 24... Qb7+
{[%clk 0:01:29.4]} 25. Kg1 {[%clk 0:00:30.8]} 25... Na4 {[%clk 0:00:41.3]} 26.
Rd7 {[%clk 0:00:27]} 26... Qe4 {[%clk 0:00:40.3]} 27. Nxh6+ {[%clk 0:00:24.5]}
27... gxh6 {[%clk 0:00:36.4]} 28. Qg6+ {[%clk 0:00:23.3]} 28... Kh8 {[%clk
0:00:36.8]} 29. Rh7# {[%clk 0:00:22.4]} 1-0

[Event "Late-Titled-Tuesday-Blitz-October-03-2023"]
[Site "Chess.com"]
[Date "2023.10.03"]
[Round "3"]
[White "kingofthenil"]
[Black "AlivodicDario"]
[Result "1-0"]
[WhiteElo "2792"]
[BlackElo "2494"]
[TimeControl "180+1"]
[EndTime "14:25:40 PDT"]
[Termination "kingofthenil won on time"]

1. e4 {[%clk 0:03:00]} 1... e6 {[%clk 0:02:54.3]} 2. c4 {[%clk 0:02:58.7]} 2...
c5 {[%clk 0:02:46.3]} 3. Ne2 {[%clk 0:02:55.2]} 3... Nc6 {[%clk 0:02:45.4]} 4.
d4 {[%clk 0:02:47.7]} 4... cxd4 {[%clk 0:02:39.6]} 5. Nxd4 {[%clk 0:02:48.6]}
5... Qb6 {[%clk 0:02:37.2]} 6. Nb3 {[%clk 0:02:47.3]} 6... Nf6 {[%clk
0:02:31.9]} 7. Nc3 {[%clk 0:02:46.9]} 7... Bb4 {[%clk 0:02:32.1]} 8. Be3 {[%clk
0:02:45]} 8... Qc7 {[%clk 0:02:26.9]} 9. f3 {[%clk 0:02:24.7]} 9... O-O {[%clk
0:02:09.7]} 10. Rc1 {[%clk 0:02:24.1]} 10... d5 {[%clk 0:02:07.6]} 11. cxd5
{[%clk 0:02:13.3]} 11... exd5 {[%clk 0:02:07.2]} 12. exd5 {[%clk 0:02:09.5]}
12... Re8 {[%clk 0:01:54.2]} 13. Kf2 {[%clk 0:02:03]} 13... Rxe3 {[%clk
0:00:44.1]} 14. Kxe3 {[%clk 0:02:00.5]} 14... Qb6+ {[%clk 0:00:43.7]} 15. Ke2
{[%clk 0:01:24.4]} 15... Bf5 {[%clk 0:00:43.5]} 16. Ke1 {[%clk 0:01:19.5]} 16...
Re8+ {[%clk 0:00:23.6]} 17. Be2 {[%clk 0:01:19]} 17... Qe3 {[%clk 0:00:06]} 18.
dxc6 {[%clk 0:01:09.7]} 18... Nd5 {[%clk 0:00:06.2]} 19. Qd2 {[%clk 0:00:58.4]}
19... Qe5 {[%clk 0:00:01.9]} 20. Nd4 {[%clk 0:00:50.5]} 20... Nxc3 {[%clk
0:00:01.6]} 21. bxc3 {[%clk 0:00:47.3]} 21... Bc5 {[%clk 0:00:02.2]} 22. cxb7
{[%clk 0:00:46]} 22... Bxd4 {[%clk 0:00:01.4]} 23. cxd4 {[%clk 0:00:45.4]} 1-0

[Event "Late-Titled-Tuesday-Blitz-October-03-2023"]
[Site "Chess.com"]
[Date "2023.10.03"]
[Round "3"]
[White "Valeron87"]
[Black "ameetghasi100"]
[Result "0-1"]
[WhiteElo "2475"]
[BlackElo "2713"]
[TimeControl "180+1"]
[EndTime "14:25:41 PDT"]
[Termination "ameetghasi100 won on time"]

1. e4 {[%clk 0:03:00.9]} 1... g6 {[%clk 0:02:59.6]} 2. d4 {[%clk 0:03:00.6]}
2... Bg7 {[%clk 0:03:00.5]} 3. Nc3 {[%clk 0:03:00.5]} 3... d6 {[%clk 0:03:01]}
4. h4 {[%clk 0:03:00.5]} 4... h6 {[%clk 0:03:00.5]} 5. h5 {[%clk 0:02:58.3]}
5... g5 {[%clk 0:03:00.7]} 6. Be3 {[%clk 0:02:48.7]} 6... Nc6 {[%clk 0:02:58.8]}
7. Qd2 {[%clk 0:02:49]} 7... a6 {[%clk 0:02:57.7]} 8. Nge2 {[%clk 0:02:48.3]}
8... b5 {[%clk 0:02:55.3]} 9. a3 {[%clk 0:02:48.6]} 9... e6 {[%clk 0:02:52.8]}
10. g3 {[%clk 0:02:47.2]} 10... Nf6 {[%clk 0:02:48]} 11. f4 {[%clk 0:02:41.5]}
11... Ng4 {[%clk 0:02:24.1]} 12. Bg1 {[%clk 0:02:41]} 12... Bb7 {[%clk
0:01:49.2]} 13. Bh3 {[%clk 0:02:36.7]} 13... f5 {[%clk 0:01:49.4]} 14. d5 {[%clk
0:02:31]} 14... Ne7 {[%clk 0:01:48.8]} 15. dxe6 {[%clk 0:02:25.3]} 15... Nf6
{[%clk 0:01:47.5]} 16. Nd4 {[%clk 0:01:50.7]} 16... Nxe4 {[%clk 0:01:46.3]} 17.
Nxe4 {[%clk 0:01:49.6]} 17... Bxe4 {[%clk 0:01:47.2]} 18. Bg2 {[%clk 0:01:41.5]}
18... c5 {[%clk 0:01:39.4]} 19. Bxe4 {[%clk 0:01:04.8]} 19... fxe4 {[%clk
0:01:40.3]} 20. fxg5 {[%clk 0:00:58.6]} 20... cxd4 {[%clk 0:01:38.5]} 21. Bxd4
{[%clk 0:00:56.9]} 21... Bxd4 {[%clk 0:00:57.4]} 22. Qxd4 {[%clk 0:00:57.8]}
22... O-O {[%clk 0:00:55.9]} 23. gxh6 {[%clk 0:00:55.6]} 23... Nf5 {[%clk
0:00:55.5]} 24. Qxe4 {[%clk 0:00:52.8]} 24... Qg5 {[%clk 0:00:54.7]} 25. g4
{[%clk 0:00:44.4]} 25... Ne7 {[%clk 0:00:49.6]} 0-1

[Event "Late-Titled-Tuesday-Blitz-October-03-2023"]
[Site "Chess.com"]
[Date "2023.10.03"]
[Round "3"]
[White "K_alena13"]
[Black "MAGMAchess02"]
[Result "0-1"]
[WhiteElo "2120"]
[BlackElo "2367"]
[TimeControl "180+1"]
[EndTime "14:25:52 PDT"]
[Termination "MAGMAchess02 won by resignation"]

1. Nf3 {[%clk 0:03:00.9]} 1... c5 {[%clk 0:02:43.7]} 2. c4 {[%clk 0:02:59.8]}
2... Nf6 {[%clk 0:02:42.6]} 3. Nc3 {[%clk 0:02:59.9]} 3... Nc6 {[%clk
0:02:40.1]} 4. d4 {[%clk 0:02:55.8]} 4... cxd4 {[%clk 0:02:41]} 5. Nxd4 {[%clk
0:02:56.2]} 5... e6 {[%clk 0:02:41.6]} 6. Ndb5 {[%clk 0:02:52.4]} 6... d6 {[%clk
0:02:39.3]} 7. Bf4 {[%clk 0:02:43.2]} 7... e5 {[%clk 0:02:36.1]} 8. Bg5 {[%clk
0:02:43.1]} 8... a6 {[%clk 0:02:29.3]} 9. Bxf6 {[%clk 0:02:35.2]} 9... gxf6
{[%clk 0:02:30.2]} 10. Na3 {[%clk 0:02:34.7]} 10... Be6 {[%clk 0:02:28.2]} 11.
e3 {[%clk 0:02:22]} 11... Bg7 {[%clk 0:02:23.7]} 12. Be2 {[%clk 0:01:49.4]}
12... f5 {[%clk 0:02:21.5]} 13. Nc2 {[%clk 0:01:32.6]} 13... Qg5 {[%clk
0:02:13.7]} 14. h4 {[%clk 0:00:51]} 14... Qxg2 {[%clk 0:01:56.4]} 15. Bf3 {[%clk
0:00:51.1]} 15... Qg6 {[%clk 0:01:57]} 16. Qxd6 {[%clk 0:00:44]} 16... e4 {[%clk
0:01:49.3]} 17. h5 {[%clk 0:00:36.2]} 17... Qf6 {[%clk 0:01:39.1]} 18. Be2
{[%clk 0:00:29.4]} 18... Rd8 {[%clk 0:01:32.7]} 19. Qg3 {[%clk 0:00:26.3]} 19...
Ne5 {[%clk 0:01:25.9]} 20. Rg1 {[%clk 0:00:20.1]} 20... Bf8 {[%clk 0:01:16.4]}
21. Nd4 {[%clk 0:00:18.7]} 21... Bxc4 {[%clk 0:01:09.3]} 22. Bxc4 {[%clk
0:00:18.2]} 22... Nxc4 {[%clk 0:01:10.1]} 23. b3 {[%clk 0:00:18.1]} 23... Ne5
{[%clk 0:01:02]} 24. Qg5 {[%clk 0:00:15.3]} 24... Nf3+ {[%clk 0:00:57]} 25. Nxf3
{[%clk 0:00:14.3]} 25... Qxc3+ {[%clk 0:00:57.7]} 26. Ke2 {[%clk 0:00:13.1]}
26... Qd3+ {[%clk 0:00:35]} 27. Ke1 {[%clk 0:00:12.8]} 27... exf3 {[%clk
0:00:35.9]} 0-1

[Event "Late-Titled-Tuesday-Blitz-October-03-2023"]
[Site "Chess.com"]
[Date "2023.10.03"]
[Round "3"]
[White "GMG"]
[Black "victormago"]
[Result "1-0"]
[WhiteElo "2749"]
[BlackElo "2486"]
[TimeControl "180+1"]
[EndTime "14:25:53 PDT"]
[Termination "GMG won on time"]

1. d4 {[%clk 0:03:00.9]} 1... Nf6 {[%clk 0:02:55.2]} 2. c4 {[%clk 0:03:00.8]}
2... c5 {[%clk 0:02:54.4]} 3. Nf3 {[%clk 0:03:00.4]} 3... cxd4 {[%clk
0:02:52.9]} 4. Nxd4 {[%clk 0:03:01.3]} 4... e5 {[%clk 0:02:52.2]} 5. Nb5 {[%clk
0:03:01.2]} 5... d5 {[%clk 0:02:52.3]} 6. cxd5 {[%clk 0:03:02.1]} 6... Bc5
{[%clk 0:02:51.2]} 7. N5c3 {[%clk 0:03:02.7]} 7... O-O {[%clk 0:02:46.6]} 8. h3
{[%clk 0:03:03.1]} 8... h6 {[%clk 0:02:44.6]} 9. e4 {[%clk 0:03:01.3]} 9... a6
{[%clk 0:02:38.2]} 10. a4 {[%clk 0:02:58.8]} 10... Nbd7 {[%clk 0:02:33.7]} 11.
Na3 {[%clk 0:02:44]} 11... Qb6 {[%clk 0:02:22.4]} 12. Qf3 {[%clk 0:02:42.9]}
12... Ne8 {[%clk 0:02:03.9]} 13. Nc4 {[%clk 0:02:35.1]} 13... Qg6 {[%clk
0:01:48.4]} 14. Be2 {[%clk 0:02:28.6]} 14... Rb8 {[%clk 0:01:47.7]} 15. a5
{[%clk 0:02:25.1]} 15... f5 {[%clk 0:01:40.2]} 16. O-O {[%clk 0:02:18.8]} 16...
fxe4 {[%clk 0:01:39.9]} 17. Qxe4 {[%clk 0:02:19.7]} 17... Qf7 {[%clk 0:01:22.8]}
18. Be3 {[%clk 0:02:12]} 18... Nef6 {[%clk 0:01:16.7]} 19. Qd3 {[%clk
0:02:11.5]} 19... Bb4 {[%clk 0:01:11]} 20. Rad1 {[%clk 0:02:08.6]} 20... Rd8
{[%clk 0:01:02.5]} 21. Ne4 {[%clk 0:02:02.7]} 21... Nxe4 {[%clk 0:00:56.8]} 22.
Qxe4 {[%clk 0:02:03.6]} 22... Re8 {[%clk 0:00:47.9]} 23. Nxe5 {[%clk 0:01:45]}
23... Nxe5 {[%clk 0:00:20]} 24. Qxb4 {[%clk 0:01:42.2]} 24... Bf5 {[%clk
0:00:20.3]} 25. Qd4 {[%clk 0:01:33.7]} 25... Rbd8 {[%clk 0:00:18.5]} 26. Bf4
{[%clk 0:01:28.4]} 26... Ng6 {[%clk 0:00:18.2]} 27. Bh5 {[%clk 0:01:21.8]} 27...
Re4 {[%clk 0:00:16.4]} 28. Qb6 {[%clk 0:01:07]} 28... Rd7 {[%clk 0:00:13.7]} 29.
Bg3 {[%clk 0:01:05.9]} 29... Kh7 {[%clk 0:00:12.2]} 30. d6 {[%clk 0:00:59.6]}
30... Re6 {[%clk 0:00:10.6]} 31. Rfe1 {[%clk 0:00:58.6]} 31... Rxe1+ {[%clk
0:00:09.8]} 32. Rxe1 {[%clk 0:00:59.5]} 32... Qf6 {[%clk 0:00:09.8]} 33. Bf3
{[%clk 0:00:55.6]} 33... Nh4 {[%clk 0:00:07.6]} 34. Bxb7 {[%clk 0:00:53.2]} 1-0

[Event "Late-Titled-Tuesday-Blitz-October-03-2023"]
[Site "Chess.com"]
[Date "2023.10.03"]
[Round "3"]
[White "Denis_Makhnyov"]
[Black "pedromartinez91"]
[Result "1-0"]
[WhiteElo "2922"]
[BlackElo "2554"]
[TimeControl "180+1"]
[EndTime "14:26:07 PDT"]
[Termination "Denis_Makhnyov won on time"]

1. d4 {[%clk 0:03:00.9]} 1... d5 {[%clk 0:02:59.5]} 2. c4 {[%clk 0:03:01.1]}
2... Bf5 {[%clk 0:02:59.8]} 3. Nc3 {[%clk 0:02:52.7]} 3... e6 {[%clk 0:02:58.7]}
4. Nf3 {[%clk 0:02:49.6]} 4... Nf6 {[%clk 0:02:57.4]} 5. Bg5 {[%clk 0:02:48.9]}
5... Be7 {[%clk 0:02:56.7]} 6. Qb3 {[%clk 0:02:48.5]} 6... dxc4 {[%clk 0:02:48]}
7. Qxc4 {[%clk 0:02:44.7]} 7... Nbd7 {[%clk 0:02:42.6]} 8. e3 {[%clk 0:02:41.3]}
8... O-O {[%clk 0:02:35.8]} 9. Be2 {[%clk 0:02:38.7]} 9... h6 {[%clk 0:02:34.3]}
10. Bh4 {[%clk 0:02:38.5]} 10... c5 {[%clk 0:02:32]} 11. Rd1 {[%clk 0:02:38]}
11... cxd4 {[%clk 0:02:25.6]} 12. Nxd4 {[%clk 0:02:37.7]} 12... Bg6 {[%clk
0:02:20.4]} 13. O-O {[%clk 0:02:32.3]} 13... Qb6 {[%clk 0:02:13.3]} 14. Nb3
{[%clk 0:02:17.5]} 14... Rac8 {[%clk 0:02:02]} 15. Qb5 {[%clk 0:02:16.1]} 15...
a6 {[%clk 0:01:57.7]} 16. Qxb6 {[%clk 0:02:14.9]} 16... Nxb6 {[%clk 0:01:58.6]}
17. Bf3 {[%clk 0:02:15.3]} 17... Nc4 {[%clk 0:01:43.6]} 18. Bxb7 {[%clk
0:01:59.3]} 18... Rc7 {[%clk 0:01:43.6]} 19. Bxa6 {[%clk 0:01:59.7]} 19... Nxb2
{[%clk 0:01:43.9]} 20. Rd2 {[%clk 0:02:00.2]} 20... Rxc3 {[%clk 0:01:14.7]} 21.
Rxb2 {[%clk 0:02:00.1]} 21... Ra8 {[%clk 0:01:12.9]} 22. Bb7 {[%clk 0:01:42.3]}
22... Ra7 {[%clk 0:01:11.6]} 23. Bf3 {[%clk 0:01:35.4]} 23... Ba3 {[%clk
0:01:11.6]} 24. Rd2 {[%clk 0:01:28]} 24... Ne4 {[%clk 0:01:11.9]} 25. Rd8+
{[%clk 0:01:28.1]} 25... Kh7 {[%clk 0:01:11.9]} 26. Nd4 {[%clk 0:01:29]} 26...
Rb7 {[%clk 0:00:37.8]} 27. Ne2 {[%clk 0:01:26.4]} 27... Rc2 {[%clk 0:00:22.7]}
28. Nf4 {[%clk 0:01:26.4]} 28... Rb4 {[%clk 0:00:13.3]} 29. Nxg6 {[%clk
0:01:24.8]} 29... Kxg6 {[%clk 0:00:12.8]} 30. Be7 {[%clk 0:01:24.7]} 30... Ra4
{[%clk 0:00:02.6]} 31. Bxe4+ {[%clk 0:01:21.9]} 31... Rxe4 {[%clk 0:00:02]} 32.
Bxa3 {[%clk 0:01:22.6]} 32... Rxa2 {[%clk 0:00:02.1]} 33. Bc5 {[%clk 0:01:22.7]}
33... Rc4 {[%clk 0:00:02]} 34. Bd4 {[%clk 0:01:21.9]} 34... Rcc2 {[%clk
0:00:02.1]} 35. Rd6 {[%clk 0:01:19.7]} 35... Kf5 {[%clk 0:00:01.4]} 36. Bxg7
{[%clk 0:01:17.2]} 36... h5 {[%clk 0:00:01.3]} 37. h4 {[%clk 0:01:15.7]} 37...
Kg6 {[%clk 0:00:01.4]} 38. Bd4 {[%clk 0:01:15.1]} 38... Re2 {[%clk 0:00:01.6]}
39. Rd8 {[%clk 0:01:13.4]} 39... Kf5 {[%clk 0:00:01.9]} 40. Rg8 {[%clk 0:01:13]}
40... f6 {[%clk 0:00:01.8]} 41. Rh8 {[%clk 0:01:13.1]} 41... e5 {[%clk
0:00:02.1]} 42. Bc5 {[%clk 0:01:09.6]} 42... Kg4 {[%clk 0:00:02.5]} 43. Rg8+
{[%clk 0:01:07.1]} 43... Kxh4 {[%clk 0:00:02.8]} 44. Be7 {[%clk 0:01:07.4]}
44... Ra6 {[%clk 0:00:01.8]} 45. Rg6 {[%clk 0:01:08.1]} 1-0

[Event "Late-Titled-Tuesday-Blitz-October-03-2023"]
[Site "Chess.com"]
[Date "2023.10.03"]
[Round "3"]
[White "akretchetov"]
[Black "martinbitel"]
[Result "1-0"]
[WhiteElo "2521"]
[BlackElo "2239"]
[TimeControl "180+1"]
[EndTime "14:26:10 PDT"]
[Termination "akretchetov won on time"]

1. Nf3 {[%clk 0:03:00.9]} 1... d5 {[%clk 0:02:59]} 2. d4 {[%clk 0:03:00.3]} 2...
Nf6 {[%clk 0:02:57]} 3. c4 {[%clk 0:02:59.8]} 3... c6 {[%clk 0:02:56.4]} 4. e3
{[%clk 0:02:59.6]} 4... e6 {[%clk 0:02:55.9]} 5. Bd3 {[%clk 0:02:59.2]} 5... Be7
{[%clk 0:02:55]} 6. O-O {[%clk 0:02:59.2]} 6... dxc4 {[%clk 0:02:54.3]} 7. Bxc4
{[%clk 0:02:59.3]} 7... b5 {[%clk 0:02:55]} 8. Bd3 {[%clk 0:02:59.5]} 8... Bb7
{[%clk 0:02:55]} 9. e4 {[%clk 0:02:59.2]} 9... O-O {[%clk 0:02:51.4]} 10. a4
{[%clk 0:02:59.2]} 10... a6 {[%clk 0:02:50.1]} 11. Qe2 {[%clk 0:02:59.3]} 11...
b4 {[%clk 0:02:43.1]} 12. Nbd2 {[%clk 0:02:56.3]} 12... c5 {[%clk 0:02:36.8]}
13. dxc5 {[%clk 0:02:47.2]} 13... Bxc5 {[%clk 0:02:37.7]} 14. Nb3 {[%clk
0:02:46.3]} 14... Ba7 {[%clk 0:02:16]} 15. Bg5 {[%clk 0:02:45.2]} 15... Qc7
{[%clk 0:01:49.8]} 16. Rac1 {[%clk 0:02:33.7]} 16... Nc6 {[%clk 0:01:46.1]} 17.
Bxf6 {[%clk 0:02:26]} 17... gxf6 {[%clk 0:01:45.7]} 18. Nc5 {[%clk 0:02:26.4]}
18... Bxc5 {[%clk 0:01:21.8]} 19. Rxc5 {[%clk 0:02:25.9]} 19... e5 {[%clk
0:01:13.6]} 20. Rfc1 {[%clk 0:02:21.8]} 20... Qb6 {[%clk 0:01:06.2]} 21. Nh4
{[%clk 0:02:16.3]} 21... Kh8 {[%clk 0:01:03]} 22. Nf5 {[%clk 0:02:13.8]} 22...
Rad8 {[%clk 0:00:50.9]} 23. h3 {[%clk 0:02:05.1]} 23... Nd4 {[%clk 0:00:44.1]}
24. Nxd4 {[%clk 0:02:05.2]} 24... Rxd4 {[%clk 0:00:44.5]} 25. a5 {[%clk
0:02:01.5]} 25... Qd8 {[%clk 0:00:41.4]} 26. Bxa6 {[%clk 0:01:55.6]} 26... Rd2
{[%clk 0:00:33.9]} 27. Qb5 {[%clk 0:01:51.5]} 27... Rd1+ {[%clk 0:00:25.1]} 28.
Rxd1 {[%clk 0:01:39.4]} 28... Qxd1+ {[%clk 0:00:25.5]} 29. Qf1 {[%clk
0:01:30.7]} 29... Qxf1+ {[%clk 0:00:21.5]} 30. Bxf1 {[%clk 0:01:30]} 30... Bxe4
{[%clk 0:00:21.8]} 31. Rb5 {[%clk 0:01:24.4]} 31... Ra8 {[%clk 0:00:17.8]} 32.
Rxb4 {[%clk 0:01:24.7]} 32... Bd5 {[%clk 0:00:12]} 33. Rb5 {[%clk 0:01:20.1]}
33... Bc6 {[%clk 0:00:11.4]} 34. Rb6 {[%clk 0:01:20.1]} 34... Bd5 {[%clk
0:00:11.7]} 35. b4 {[%clk 0:01:20.2]} 35... Kg7 {[%clk 0:00:10.6]} 36. a6 {[%clk
0:01:20.1]} 36... Kf8 {[%clk 0:00:08.5]} 37. b5 {[%clk 0:01:20.3]} 37... Ke7
{[%clk 0:00:08.4]} 38. f3 {[%clk 0:01:15]} 38... f5 {[%clk 0:00:04.2]} 39. Rh6
{[%clk 0:01:12.6]} 39... Be6 {[%clk 0:00:02.8]} 40. b6 {[%clk 0:01:10.1]} 40...
Rb8 {[%clk 0:00:01.7]} 41. b7 {[%clk 0:01:09.1]} 41... Bd5 {[%clk 0:00:01.7]}
42. a7 {[%clk 0:01:00.3]} 42... Rxb7 {[%clk 0:00:02.6]} 43. a8=Q {[%clk
0:01:00.4]} 43... Rb1 {[%clk 0:00:02.6]} 44. Qxd5 {[%clk 0:00:59.1]} 1-0

[Event "Late-Titled-Tuesday-Blitz-October-03-2023"]
[Site "Chess.com"]
[Date "2023.10.03"]
[Round "3"]
[White "gabduschew"]
[Black "Nf3c5"]
[Result "0-1"]
[WhiteElo "2406"]
[BlackElo "2597"]
[TimeControl "180+1"]
[EndTime "14:26:12 PDT"]
[Termination "Nf3c5 won by resignation"]

1. b3 {[%clk 0:02:59.3]} 1... c5 {[%clk 0:02:49.9]} 2. Bb2 {[%clk 0:02:59]} 2...
d6 {[%clk 0:02:50.5]} 3. e3 {[%clk 0:02:58.5]} 3... e5 {[%clk 0:02:41.2]} 4. d4
{[%clk 0:02:57.8]} 4... cxd4 {[%clk 0:02:24.8]} 5. exd4 {[%clk 0:02:57.7]} 5...
e4 {[%clk 0:02:25.3]} 6. d5 {[%clk 0:02:56.7]} 6... Nf6 {[%clk 0:02:19.1]} 7.
Bc4 {[%clk 0:02:50.2]} 7... Bf5 {[%clk 0:02:07.9]} 8. Ne2 {[%clk 0:02:48.9]}
8... Nbd7 {[%clk 0:01:50.9]} 9. Ng3 {[%clk 0:02:48.2]} 9... Bg6 {[%clk
0:01:50.8]} 10. O-O {[%clk 0:02:46.7]} 10... Be7 {[%clk 0:01:49.4]} 11. Nc3
{[%clk 0:02:44]} 11... a6 {[%clk 0:01:41]} 12. a4 {[%clk 0:02:41.2]} 12... Ne5
{[%clk 0:01:32.6]} 13. Qd4 {[%clk 0:02:32.9]} 13... Rc8 {[%clk 0:01:26.8]} 14.
Be2 {[%clk 0:02:20.2]} 14... O-O {[%clk 0:01:25.4]} 15. Rac1 {[%clk 0:02:10.6]}
15... Re8 {[%clk 0:01:03.1]} 16. Rfe1 {[%clk 0:01:48.8]} 16... Bf8 {[%clk
0:01:01]} 17. Bd1 {[%clk 0:01:43.9]} 17... Qa5 {[%clk 0:00:58.4]} 18. h3 {[%clk
0:01:29.4]} 18... h5 {[%clk 0:00:38.7]} 19. Be2 {[%clk 0:01:07.4]} 19... h4
{[%clk 0:00:37.6]} 20. Nf1 {[%clk 0:01:06.8]} 20... Ned7 {[%clk 0:00:29]} 21.
Ne3 {[%clk 0:01:01]} 21... Re5 {[%clk 0:00:23.1]} 22. Nc4 {[%clk 0:00:59.1]}
22... Rxc4 {[%clk 0:00:23.3]} 23. Bxc4 {[%clk 0:00:58]} 23... Qd8 {[%clk
0:00:23.2]} 24. Ne2 {[%clk 0:00:54.8]} 24... Rg5 {[%clk 0:00:21.5]} 25. Rcd1
{[%clk 0:00:48.2]} 25... Ne5 {[%clk 0:00:21.3]} 26. Bc1 {[%clk 0:00:47.9]} 26...
Nf3+ {[%clk 0:00:20.8]} 27. Kh1 {[%clk 0:00:47.5]} 27... Nxd4 {[%clk 0:00:21.2]}
28. Bxg5 {[%clk 0:00:47.8]} 28... Nxe2 {[%clk 0:00:21.8]} 29. Rxe2 {[%clk
0:00:47.8]} 29... Qc7 {[%clk 0:00:21.4]} 30. Bxf6 {[%clk 0:00:45.2]} 30... gxf6
{[%clk 0:00:21.5]} 31. Kh2 {[%clk 0:00:32.4]} 31... Bh6 {[%clk 0:00:20.4]} 32.
g3 {[%clk 0:00:30.4]} 32... Bh5 {[%clk 0:00:18.2]} 33. gxh4 {[%clk 0:00:28.5]}
33... Bxe2 {[%clk 0:00:17.1]} 0-1

[Event "Late-Titled-Tuesday-Blitz-October-03-2023"]
[Site "Chess.com"]
[Date "2023.10.03"]
[Round "3"]
[White "Quattroporte300"]
[Black "Yushko_Olga"]
[Result "1-0"]
[WhiteElo "2354"]
[BlackElo "2104"]
[TimeControl "180+1"]
[EndTime "14:26:13 PDT"]
[Termination "Quattroporte300 won by resignation"]

1. e4 {[%clk 0:02:58.1]} 1... e6 {[%clk 0:02:59.4]} 2. d4 {[%clk 0:02:56.4]}
2... d5 {[%clk 0:02:57.3]} 3. exd5 {[%clk 0:02:56.9]} 3... exd5 {[%clk
0:02:56.1]} 4. Nf3 {[%clk 0:02:57]} 4... Nf6 {[%clk 0:02:56.6]} 5. Bd3 {[%clk
0:02:57.4]} 5... Be7 {[%clk 0:02:57.2]} 6. O-O {[%clk 0:02:57.9]} 6... O-O
{[%clk 0:02:57.8]} 7. h3 {[%clk 0:02:58.4]} 7... c5 {[%clk 0:02:57.9]} 8. dxc5
{[%clk 0:02:57.1]} 8... Bxc5 {[%clk 0:02:57.9]} 9. Nbd2 {[%clk 0:02:57.8]} 9...
Nc6 {[%clk 0:02:57.7]} 10. Nb3 {[%clk 0:02:58.2]} 10... Be7 {[%clk 0:02:56.8]}
11. c3 {[%clk 0:02:57.6]} 11... Qc7 {[%clk 0:02:51.4]} 12. Re1 {[%clk
0:02:57.1]} 12... Be6 {[%clk 0:02:44.8]} 13. Bg5 {[%clk 0:02:53.6]} 13... h6
{[%clk 0:02:44.2]} 14. Bh4 {[%clk 0:02:53.3]} 14... Rfe8 {[%clk 0:02:38.5]} 15.
Nbd4 {[%clk 0:02:44.9]} 15... Nxd4 {[%clk 0:02:36.7]} 16. Nxd4 {[%clk
0:02:43.7]} 16... Bd7 {[%clk 0:02:29.8]} 17. Qf3 {[%clk 0:02:40.5]} 17... Qd6
{[%clk 0:01:48.1]} 18. Bg3 {[%clk 0:02:31.8]} 18... Qb6 {[%clk 0:01:44.5]} 19.
Re2 {[%clk 0:02:30.3]} 19... Bd6 {[%clk 0:01:44.2]} 20. Rae1 {[%clk 0:02:24.2]}
20... Bxg3 {[%clk 0:01:42.6]} 21. Qxg3 {[%clk 0:02:24.2]} 21... Rxe2 {[%clk
0:01:37.9]} 22. Rxe2 {[%clk 0:02:23.7]} 22... Re8 {[%clk 0:01:38.1]} 23. Rxe8+
{[%clk 0:02:17.7]} 23... Nxe8 {[%clk 0:01:36.7]} 24. b3 {[%clk 0:02:15.5]} 24...
Qa5 {[%clk 0:01:32.6]} 25. Bb1 {[%clk 0:01:59.6]} 25... Nf6 {[%clk 0:01:19.7]}
26. Kh2 {[%clk 0:01:50.6]} 26... Qc5 {[%clk 0:00:56.5]} 27. Bf5 {[%clk
0:01:39.1]} 27... Ne4 {[%clk 0:00:33.5]} 28. Qb8+ {[%clk 0:01:31]} 28... Bc8
{[%clk 0:00:18.1]} 29. Qxc8+ {[%clk 0:01:22.2]} 29... Qxc8 {[%clk 0:00:17.7]}
30. Bxc8 {[%clk 0:01:23.1]} 30... Nxc3 {[%clk 0:00:17.4]} 31. Bxb7 {[%clk
0:01:22.3]} 31... Nxa2 {[%clk 0:00:12.2]} 32. Bxd5 {[%clk 0:01:21.1]} 32... Nc1
{[%clk 0:00:11.9]} 33. Nc6 {[%clk 0:01:14.1]} 33... a6 {[%clk 0:00:10.8]} 34.
Bc4 {[%clk 0:01:11.9]} 34... Kf8 {[%clk 0:00:08.2]} 35. b4 {[%clk 0:01:09.9]}
35... Ke8 {[%clk 0:00:07.4]} 36. Kg1 {[%clk 0:01:09.6]} 36... Kd7 {[%clk
0:00:07.4]} 37. Ne5+ {[%clk 0:01:05.6]} 37... Ke7 {[%clk 0:00:07.3]} 38. Kf1
{[%clk 0:01:03.4]} 38... f6 {[%clk 0:00:05.9]} 39. Nf3 {[%clk 0:01:02.5]} 1-0